[Event "*** SCC Grand Prix: Titled Tuesday Blitz"]
[Site "Chess.com"]
[Date "2020.10.06"]
[Round "7"]
[White "MashaFromRussia"]
[Black "Morshynska"]
[Result "1/2-1/2"]
[WhiteElo "2402"]
[BlackElo "2225"]
[TimeControl "180+1"]
[EndTime "11:21:10 PDT"]
[Termination "Game drawn by stalemate"]

1. d4 {[%clk 0:03:00.9]} 1... d5 {[%clk 0:02:59.6]} 2. c4 {[%clk 0:03:01.8]}
2... c6 {[%clk 0:02:59.6]} 3. Nf3 {[%clk 0:03:02.4]} 3... Nf6 {[%clk 0:02:59.3]}
4. Nc3 {[%clk 0:03:02.7]} 4... e6 {[%clk 0:02:59.7]} 5. g3 {[%clk 0:03:02.7]}
5... Nbd7 {[%clk 0:02:50.9]} 6. Bg2 {[%clk 0:03:03.1]} 6... Bd6 {[%clk
0:02:41.7]} 7. O-O {[%clk 0:03:03.2]} 7... O-O {[%clk 0:02:41.4]} 8. b3 {[%clk
0:03:03.4]} 8... Qe7 {[%clk 0:02:40.5]} 9. Qc2 {[%clk 0:03:03.4]} 9... b6 {[%clk
0:02:28.3]} 10. Rd1 {[%clk 0:03:01.4]} 10... Bb7 {[%clk 0:02:24.9]} 11. e4
{[%clk 0:02:58.3]} 11... dxe4 {[%clk 0:02:24.3]} 12. Nxe4 {[%clk 0:02:59.2]}
12... Nxe4 {[%clk 0:02:25]} 13. Qxe4 {[%clk 0:03:00.1]} 13... Rab8 {[%clk
0:01:59.6]} 14. Bb2 {[%clk 0:02:47.1]} 14... Ba3 {[%clk 0:01:48.8]} 15. Bxa3
{[%clk 0:02:36]} 15... Qxa3 {[%clk 0:01:49.7]} 16. Ng5 {[%clk 0:02:32.2]} 16...
Nf6 {[%clk 0:01:47.9]} 17. Qc2 {[%clk 0:02:27.3]} 17... c5 {[%clk 0:01:32.1]}
18. Bxb7 {[%clk 0:02:21.7]} 18... Rxb7 {[%clk 0:01:33]} 19. dxc5 {[%clk
0:02:15.5]} 19... Qxc5 {[%clk 0:01:33.9]} 20. Ne4 {[%clk 0:02:15.8]} 20... Qe5
{[%clk 0:01:20.4]} 21. Nxf6+ {[%clk 0:02:15.1]} 21... Qxf6 {[%clk 0:01:21.3]}
22. Rac1 {[%clk 0:02:06.1]} 22... Rc8 {[%clk 0:00:50.8]} 23. Qe4 {[%clk
0:02:02.5]} 23... Rbc7 {[%clk 0:00:42.7]} 24. a4 {[%clk 0:01:49.1]} 24... Qb2
{[%clk 0:00:33.5]} 25. Qc2 {[%clk 0:01:48.5]} 25... Qxc2 {[%clk 0:00:32.4]} 26.
Rxc2 {[%clk 0:01:49.4]} 26... Kf8 {[%clk 0:00:31.5]} 27. Rcd2 {[%clk 0:01:49.4]}
27... Ke7 {[%clk 0:00:31.1]} 28. Rd6 {[%clk 0:01:45.6]} 28... Rb8 {[%clk
0:00:26.6]} 29. f4 {[%clk 0:01:37.8]} 29... Rbb7 {[%clk 0:00:24]} 30. Kf2 {[%clk
0:01:36.8]} 30... Rd7 {[%clk 0:00:20.9]} 31. Rxd7+ {[%clk 0:01:36.3]} 31... Rxd7
{[%clk 0:00:21.8]} 32. Rxd7+ {[%clk 0:01:36.8]} 32... Kxd7 {[%clk 0:00:22.7]}
33. b4 {[%clk 0:01:19.8]} 33... a5 {[%clk 0:00:18.3]} 34. bxa5 {[%clk
0:01:13.9]} 34... bxa5 {[%clk 0:00:19.2]} 35. Ke3 {[%clk 0:01:14.3]} 35... Kc6
{[%clk 0:00:14.7]} 36. Kd4 {[%clk 0:01:14.5]} 36... f6 {[%clk 0:00:14.3]} 37. g4
{[%clk 0:01:10.3]} 37... h6 {[%clk 0:00:12.4]} 38. h4 {[%clk 0:01:09.4]} 38...
g6 {[%clk 0:00:09]} 39. h5 {[%clk 0:01:04]} 39... gxh5 {[%clk 0:00:07.2]} 40.
gxh5 {[%clk 0:01:04.9]} 40... Kd6 {[%clk 0:00:07.3]} 41. c5+ {[%clk 0:00:31.4]}
41... Kc6 {[%clk 0:00:07.3]} 42. Kc4 {[%clk 0:00:24.5]} 42... e5 {[%clk
0:00:05.4]} 43. f5 {[%clk 0:00:13]} 43... e4 {[%clk 0:00:05.4]} 44. Kd4 {[%clk
0:00:13.6]} 44... e3 {[%clk 0:00:05.2]} 45. Kxe3 {[%clk 0:00:14.2]} 45... Kxc5
{[%clk 0:00:06.1]} 46. Ke4 {[%clk 0:00:14.7]} 46... Kc4 {[%clk 0:00:05.5]} 47.
Ke3 {[%clk 0:00:12.1]} 47... Kd5 {[%clk 0:00:04.7]} 48. Kd3 {[%clk 0:00:12.6]}
48... Ke5 {[%clk 0:00:04.7]} 49. Kc4 {[%clk 0:00:13.3]} 49... Kxf5 {[%clk
0:00:05.1]} 50. Kb5 {[%clk 0:00:14.2]} 50... Kg5 {[%clk 0:00:03.9]} 51. Kxa5
{[%clk 0:00:15.1]} 51... f5 {[%clk 0:00:04.4]} 52. Kb6 {[%clk 0:00:16]} 52... f4
{[%clk 0:00:04.8]} 53. a5 {[%clk 0:00:16.9]} 53... f3 {[%clk 0:00:05.2]} 54. a6
{[%clk 0:00:17.3]} 54... f2 {[%clk 0:00:05.6]} 55. a7 {[%clk 0:00:17.8]} 55...
f1=Q {[%clk 0:00:05.5]} 56. a8=Q {[%clk 0:00:18.7]} 56... Qf2+ {[%clk
0:00:05.4]} 57. Kb5 {[%clk 0:00:18.5]} 57... Qb2+ {[%clk 0:00:04.8]} 58. Kc4
{[%clk 0:00:18.1]} 58... Qc2+ {[%clk 0:00:04.4]} 59. Kb4 {[%clk 0:00:18.2]}
59... Qd2+ {[%clk 0:00:04.2]} 60. Kc4 {[%clk 0:00:18.7]} 60... Qe2+ {[%clk
0:00:04.3]} 61. Kb4 {[%clk 0:00:19]} 61... Qe7+ {[%clk 0:00:03.5]} 62. Kc4
{[%clk 0:00:18]} 62... Qe6+ {[%clk 0:00:03.3]} 63. Kd4 {[%clk 0:00:11.7]} 63...
Qf6+ {[%clk 0:00:02.6]} 64. Ke3 {[%clk 0:00:09.7]} 64... Qf4+ {[%clk 0:00:02.3]}
65. Ke2 {[%clk 0:00:09.7]} 65... Kxh5 {[%clk 0:00:02.6]} 66. Qe8+ {[%clk
0:00:08.7]} 66... Kg5 {[%clk 0:00:02]} 67. Qg8+ {[%clk 0:00:08.5]} 67... Kh4
{[%clk 0:00:02.1]} 68. Qd8+ {[%clk 0:00:08.3]} 68... Qg5 {[%clk 0:00:01.6]} 69.
Qd4+ {[%clk 0:00:08.6]} 69... Qg4+ {[%clk 0:00:01.9]} 70. Qxg4+ {[%clk
0:00:07.2]} 70... Kxg4 {[%clk 0:00:02.8]} 71. Kf1 {[%clk 0:00:08.1]} 71... h5
{[%clk 0:00:03.6]} 72. Kg1 {[%clk 0:00:09]} 72... h4 {[%clk 0:00:04.2]} 73. Kh1
{[%clk 0:00:09.9]} 73... h3 {[%clk 0:00:05.1]} 74. Kg1 {[%clk 0:00:10.8]} 74...
Kh4 {[%clk 0:00:06]} 75. Kh1 {[%clk 0:00:11.7]} 75... Kg4 {[%clk 0:00:06.9]} 76.
Kh2 {[%clk 0:00:12.6]} 76... Kh4 {[%clk 0:00:07.2]} 77. Kg1 {[%clk 0:00:12.7]}
77... Kg3 {[%clk 0:00:08.1]} 78. Kh1 {[%clk 0:00:13]} 78... h2 {[%clk 0:00:09]}
1/2-1/2

[Event "*** SCC Grand Prix: Titled Tuesday Blitz"]
[Site "Chess.com"]
[Date "2020.10.06"]
[Round "7"]
[White "mhennigan"]
[Black "CrazyMartian"]
[Result "1-0"]
[WhiteElo "2413"]
[BlackElo "2273"]
[TimeControl "180+1"]
[EndTime "11:21:16 PDT"]
[Termination "mhennigan won by checkmate"]

1. g3 {[%clk 0:03:00.9]} 1... d5 {[%clk 0:02:48]} 2. Bg2 {[%clk 0:03:00.2]} 2...
Nf6 {[%clk 0:02:48.5]} 3. d3 {[%clk 0:02:59.9]} 3... c6 {[%clk 0:02:48.6]} 4.
Nf3 {[%clk 0:02:59.8]} 4... Bf5 {[%clk 0:02:48.7]} 5. O-O {[%clk 0:02:58.9]}
5... h6 {[%clk 0:02:49]} 6. Nbd2 {[%clk 0:02:59.2]} 6... e6 {[%clk 0:02:48.8]}
7. b3 {[%clk 0:02:59.5]} 7... Be7 {[%clk 0:02:47.2]} 8. Bb2 {[%clk 0:02:59.6]}
8... O-O {[%clk 0:02:46.8]} 9. Qe1 {[%clk 0:02:59.4]} 9... Bh7 {[%clk
0:02:46.7]} 10. e4 {[%clk 0:02:59.3]} 10... a5 {[%clk 0:02:47.1]} 11. a3 {[%clk
0:02:54.2]} 11... Na6 {[%clk 0:02:46.5]} 12. Qe2 {[%clk 0:02:51.8]} 12... Rc8
{[%clk 0:02:44.7]} 13. h3 {[%clk 0:02:30.9]} 13... b5 {[%clk 0:02:30.9]} 14. Ne5
{[%clk 0:02:25]} 14... Nd7 {[%clk 0:02:21.2]} 15. Nxd7 {[%clk 0:02:13.1]} 15...
Qxd7 {[%clk 0:02:21.2]} 16. f4 {[%clk 0:02:13.6]} 16... dxe4 {[%clk 0:02:09.3]}
17. Nxe4 {[%clk 0:01:50.5]} 17... Nc5 {[%clk 0:02:06.8]} 18. Rad1 {[%clk
0:01:39.9]} 18... Rfd8 {[%clk 0:02:02.4]} 19. g4 {[%clk 0:01:36.4]} 19... Nxe4
{[%clk 0:01:36.5]} 20. dxe4 {[%clk 0:01:35.6]} 20... Qa7+ {[%clk 0:01:34.7]} 21.
Kh1 {[%clk 0:01:34]} 21... Rxd1 {[%clk 0:01:00.9]} 22. Rxd1 {[%clk 0:01:32.5]}
22... Rd8 {[%clk 0:00:59.8]} 23. Rxd8+ {[%clk 0:01:30.1]} 23... Bxd8 {[%clk
0:01:00.7]} 24. Qd2 {[%clk 0:01:19.8]} 24... Qc7 {[%clk 0:00:43.9]} 25. Be5
{[%clk 0:01:00.5]} 25... Qc8 {[%clk 0:00:39.4]} 26. f5 {[%clk 0:00:56]} 26... f6
{[%clk 0:00:35]} 27. Bc3 {[%clk 0:00:51.3]} 27... Kh8 {[%clk 0:00:22.8]} 28.
Bxa5 {[%clk 0:00:47.5]} 28... Bxa5 {[%clk 0:00:21.9]} 29. Qxa5 {[%clk
0:00:47.7]} 29... Bg8 {[%clk 0:00:20.6]} 30. Qd2 {[%clk 0:00:38.5]} 30... e5
{[%clk 0:00:19.3]} 31. Bf1 {[%clk 0:00:31.4]} 31... Qa6 {[%clk 0:00:17.9]} 32.
a4 {[%clk 0:00:29.8]} 32... Qb6 {[%clk 0:00:18.1]} 33. a5 {[%clk 0:00:25.7]}
33... Qc5 {[%clk 0:00:15.7]} 34. b4 {[%clk 0:00:21.7]} 34... Qa7 {[%clk
0:00:15.6]} 35. Kg2 {[%clk 0:00:19.8]} 35... Kh7 {[%clk 0:00:15.6]} 36. Qf2
{[%clk 0:00:14.3]} 36... Qd7 {[%clk 0:00:15.1]} 37. Bd3 {[%clk 0:00:13]} 37...
Bc4 {[%clk 0:00:14.6]} 38. Bxc4 {[%clk 0:00:10.6]} 38... bxc4 {[%clk 0:00:15.5]}
39. a6 {[%clk 0:00:10.8]} 39... Qc7 {[%clk 0:00:15]} 40. a7 {[%clk 0:00:09.9]}
40... Qb7 {[%clk 0:00:15]} 41. Qc5 {[%clk 0:00:09.8]} 41... c3 {[%clk
0:00:13.7]} 42. Kf3 {[%clk 0:00:09.7]} 42... h5 {[%clk 0:00:12.1]} 43. Qa5
{[%clk 0:00:06.3]} 43... hxg4+ {[%clk 0:00:11.7]} 44. hxg4 {[%clk 0:00:06.1]}
44... Qa8 {[%clk 0:00:12.2]} 45. g5 {[%clk 0:00:05.7]} 45... fxg5 {[%clk
0:00:11.8]} 46. Kg4 {[%clk 0:00:05.7]} 46... Kh6 {[%clk 0:00:10.9]} 47. Qb6
{[%clk 0:00:05]} 47... Qe8 {[%clk 0:00:07.2]} 48. Kg3 {[%clk 0:00:01.6]} 48...
Qh5 {[%clk 0:00:07.1]} 49. b5 {[%clk 0:00:02.1]} 49... Qh4+ {[%clk 0:00:07.3]}
50. Kg2 {[%clk 0:00:02.4]} 50... Qxe4+ {[%clk 0:00:07.1]} 51. Kf2 {[%clk
0:00:03]} 51... Qf4+ {[%clk 0:00:07.3]} 52. Ke2 {[%clk 0:00:03.4]} 52... Qd2+
{[%clk 0:00:07.8]} 53. Kf3 {[%clk 0:00:03.5]} 53... Qf4+ {[%clk 0:00:08]} 54.
Ke2 {[%clk 0:00:04.1]} 54... Qd2+ {[%clk 0:00:08]} 55. Kf1 {[%clk 0:00:04.5]}
55... Qd1+ {[%clk 0:00:07.9]} 56. Kg2 {[%clk 0:00:04.2]} 56... Qxc2+ {[%clk
0:00:08.8]} 57. Qf2 {[%clk 0:00:03.3]} 57... Qe4+ {[%clk 0:00:09.4]} 58. Kg3
{[%clk 0:00:03.1]} 58... Qh4+ {[%clk 0:00:08.6]} 59. Kg2 {[%clk 0:00:03.3]}
59... Qe4+ {[%clk 0:00:09.2]} 60. Kg3 {[%clk 0:00:03.4]} 60... Qh4+ {[%clk
0:00:07.9]} 61. Kf3 {[%clk 0:00:04]} 61... Qf4+ {[%clk 0:00:07.3]} 62. Ke2
{[%clk 0:00:03.9]} 62... Qc4+ {[%clk 0:00:07.8]} 63. Ke1 {[%clk 0:00:03.4]}
63... Qa4 {[%clk 0:00:06.7]} 64. Qh2+ {[%clk 0:00:02.9]} 64... Qh4+ {[%clk
0:00:05.4]} 65. Qxh4+ {[%clk 0:00:03.6]} 65... gxh4 {[%clk 0:00:05.8]} 66. a8=Q
{[%clk 0:00:03.5]} 66... c2 {[%clk 0:00:06.7]} 67. Qxc6+ {[%clk 0:00:03.4]}
67... Kh5 {[%clk 0:00:04.2]} 68. Qxc2 {[%clk 0:00:03.8]} 68... g6 {[%clk
0:00:05]} 69. Qe4 {[%clk 0:00:03.5]} 69... gxf5 {[%clk 0:00:05.9]} 70. Qxf5+
{[%clk 0:00:03.1]} 70... Kh6 {[%clk 0:00:06.6]} 71. Qxe5 {[%clk 0:00:03.3]}
71... h3 {[%clk 0:00:06.8]} 72. Kf2 {[%clk 0:00:03.8]} 72... h2 {[%clk
0:00:06.7]} 73. Kg2 {[%clk 0:00:04.1]} 73... h1=Q+ {[%clk 0:00:07.6]} 74. Kxh1
{[%clk 0:00:04.3]} 74... Kg6 {[%clk 0:00:08.5]} 75. b6 {[%clk 0:00:04.6]} 75...
Kh6 {[%clk 0:00:09.4]} 76. b7 {[%clk 0:00:05]} 76... Kg6 {[%clk 0:00:10.3]} 77.
b8=Q {[%clk 0:00:05]} 77... Kh7 {[%clk 0:00:11.2]} 78. Qbd6 {[%clk 0:00:05.3]}
78... Kg8 {[%clk 0:00:11.1]} 79. Qe8+ {[%clk 0:00:05.1]} 79... Kh7 {[%clk
0:00:10.6]} 80. Qee7+ {[%clk 0:00:05.5]} 80... Kg8 {[%clk 0:00:10.7]} 81. Qdd8#
{[%clk 0:00:06]} 1-0

[Event "*** SCC Grand Prix: Titled Tuesday Blitz"]
[Site "Chess.com"]
[Date "2020.10.06"]
[Round "7"]
[White "MrChampion_Coach"]
[Black "HrvojeZagreb"]
[Result "0-1"]
[WhiteElo "2372"]
[BlackElo "2150"]
[TimeControl "180+1"]
[EndTime "11:21:30 PDT"]
[Termination "HrvojeZagreb won on time"]

1. d4 {[%clk 0:03:00]} 1... e6 {[%clk 0:02:55.8]} 2. c4 {[%clk 0:02:58.7]} 2...
f5 {[%clk 0:02:55.5]} 3. g3 {[%clk 0:02:58.1]} 3... Nf6 {[%clk 0:02:55.4]} 4.
Bg2 {[%clk 0:02:58.3]} 4... Be7 {[%clk 0:02:55.8]} 5. Nc3 {[%clk 0:02:58.1]}
5... d6 {[%clk 0:02:53.8]} 6. Qc2 {[%clk 0:02:56.7]} 6... Nc6 {[%clk 0:02:48.8]}
7. e3 {[%clk 0:02:54.9]} 7... O-O {[%clk 0:02:45.6]} 8. Nge2 {[%clk 0:02:54.8]}
8... e5 {[%clk 0:02:41.8]} 9. dxe5 {[%clk 0:02:53.5]} 9... dxe5 {[%clk
0:02:41.7]} 10. a3 {[%clk 0:02:50.3]} 10... Qe8 {[%clk 0:02:23.2]} 11. Nd5
{[%clk 0:02:47.2]} 11... Bd8 {[%clk 0:02:22]} 12. b4 {[%clk 0:02:35.2]} 12... e4
{[%clk 0:02:10.7]} 13. Bb2 {[%clk 0:02:35]} 13... Ne5 {[%clk 0:02:10.1]} 14.
Bxe5 {[%clk 0:02:35.2]} 14... Qxe5 {[%clk 0:02:09.8]} 15. O-O {[%clk 0:02:35.5]}
15... c6 {[%clk 0:02:07.6]} 16. Ndc3 {[%clk 0:02:33.7]} 16... Ng4 {[%clk
0:01:53.1]} 17. Rad1 {[%clk 0:02:27.6]} 17... h5 {[%clk 0:01:37.8]} 18. Nf4
{[%clk 0:02:15.2]} 18... Qe8 {[%clk 0:01:31.6]} 19. h3 {[%clk 0:01:26.3]} 19...
Ne5 {[%clk 0:01:28.6]} 20. Qe2 {[%clk 0:01:19.3]} 20... g6 {[%clk 0:01:12.6]}
21. Rd6 {[%clk 0:01:00.8]} 21... Bc7 {[%clk 0:00:59]} 22. Rd4 {[%clk 0:00:58.9]}
22... Be6 {[%clk 0:00:40]} 23. Rfd1 {[%clk 0:00:52.6]} 23... Qf7 {[%clk
0:00:39.4]} 24. Nxe6 {[%clk 0:00:41.3]} 24... Qxe6 {[%clk 0:00:38.5]} 25. Kh1
{[%clk 0:00:20.6]} 25... Rad8 {[%clk 0:00:37.4]} 26. Rxd8 {[%clk 0:00:09.7]}
26... Rxd8 {[%clk 0:00:36.8]} 27. Rd4 {[%clk 0:00:10.4]} 27... h4 {[%clk
0:00:24.2]} 28. Kg1 {[%clk 0:00:09.4]} 28... hxg3 {[%clk 0:00:20.3]} 29. fxg3
{[%clk 0:00:10.3]} 29... Nd3 {[%clk 0:00:19.7]} 30. Nxe4 {[%clk 0:00:09.7]}
30... Rxd4 {[%clk 0:00:12.2]} 31. exd4 {[%clk 0:00:09.6]} 31... fxe4 {[%clk
0:00:11.7]} 32. Bxe4 {[%clk 0:00:10.5]} 32... Nc1 {[%clk 0:00:10.2]} 33. Qf3
{[%clk 0:00:10.6]} 33... Bxg3 {[%clk 0:00:08.2]} 34. Kg2 {[%clk 0:00:09.2]}
34... Bc7 {[%clk 0:00:05.8]} 35. d5 {[%clk 0:00:09.6]} 35... Qd6 {[%clk
0:00:05.5]} 36. Qg4 {[%clk 0:00:08.7]} 36... Qh2+ {[%clk 0:00:05]} 37. Kf1
{[%clk 0:00:08.9]} 37... Qf4+ {[%clk 0:00:04.3]} 38. Qxf4 {[%clk 0:00:08.2]}
38... Bxf4 {[%clk 0:00:05.2]} 39. dxc6 {[%clk 0:00:06]} 39... bxc6 {[%clk
0:00:06.1]} 40. Bxc6 {[%clk 0:00:06.9]} 40... g5 {[%clk 0:00:05.6]} 41. c5
{[%clk 0:00:06.7]} 41... Nb3 {[%clk 0:00:05.7]} 42. Bd5+ {[%clk 0:00:06.8]}
42... Kg7 {[%clk 0:00:04.9]} 43. Bxb3 {[%clk 0:00:07.7]} 43... Bc1 {[%clk
0:00:05.4]} 44. a4 {[%clk 0:00:07.8]} 44... Ba3 {[%clk 0:00:06.3]} 45. b5 {[%clk
0:00:07.7]} 45... Bxc5 {[%clk 0:00:06.5]} 46. Ke2 {[%clk 0:00:08.6]} 46... Kf6
{[%clk 0:00:05.9]} 47. Kf3 {[%clk 0:00:09.2]} 47... Ke5 {[%clk 0:00:06.4]} 48.
Kg4 {[%clk 0:00:09.2]} 48... Kf6 {[%clk 0:00:06.6]} 49. Bc2 {[%clk 0:00:08.3]}
49... Bb4 {[%clk 0:00:06.7]} 50. Bd3 {[%clk 0:00:07.6]} 50... Bc5 {[%clk
0:00:07.1]} 51. Be2 {[%clk 0:00:07.7]} 51... Bb4 {[%clk 0:00:07.4]} 52. Kf3
{[%clk 0:00:07.8]} 52... Ke5 {[%clk 0:00:06.6]} 53. Kg4 {[%clk 0:00:07.7]} 53...
Kf6 {[%clk 0:00:06.6]} 54. Kh5 {[%clk 0:00:07.3]} 54... Ba5 {[%clk 0:00:06.3]}
55. Kh6 {[%clk 0:00:06.9]} 55... Bb6 {[%clk 0:00:06]} 56. Bg4 {[%clk 0:00:07.3]}
56... Bc5 {[%clk 0:00:06.2]} 57. Kh7 {[%clk 0:00:07.5]} 57... Bb6 {[%clk
0:00:06.6]} 58. Kg8 {[%clk 0:00:07.5]} 58... Be3 {[%clk 0:00:06.9]} 59. Kf8
{[%clk 0:00:08.4]} 59... Ke5 {[%clk 0:00:07.2]} 60. Ke7 {[%clk 0:00:07.5]} 60...
Kd5 {[%clk 0:00:07.4]} 61. Kd7 {[%clk 0:00:07.3]} 61... Kc5 {[%clk 0:00:07.9]}
62. Kc7 {[%clk 0:00:07.3]} 62... Kb4 {[%clk 0:00:07.7]} 63. Bd1 {[%clk
0:00:07.7]} 63... Bb6+ {[%clk 0:00:07.2]} 64. Kb7 {[%clk 0:00:07.7]} 64... Bc5
{[%clk 0:00:07.9]} 65. Ka6 {[%clk 0:00:07.3]} 65... Bb6 {[%clk 0:00:08.2]} 66.
Bc2 {[%clk 0:00:07.1]} 66... Ba5 {[%clk 0:00:08.6]} 67. Bf5 {[%clk 0:00:05.9]}
67... Bb6 {[%clk 0:00:08.9]} 68. Bc2 {[%clk 0:00:05.9]} 68... Ba5 {[%clk
0:00:09.3]} 69. Bd1 {[%clk 0:00:05.2]} 69... Bb6 {[%clk 0:00:09.7]} 70. Be2
{[%clk 0:00:03.8]} 70... Ba5 {[%clk 0:00:10]} 71. h4 {[%clk 0:00:03.3]} 71...
gxh4 {[%clk 0:00:09.5]} 72. Bg4 {[%clk 0:00:03.5]} 72... Bb6 {[%clk 0:00:10]}
73. Bh3 {[%clk 0:00:02.2]} 73... Kxa4 {[%clk 0:00:10.3]} 74. Bg4 {[%clk
0:00:02]} 74... Kb4 {[%clk 0:00:10.9]} 75. Bh3 {[%clk 0:00:02.9]} 75... Kc5
{[%clk 0:00:11.4]} 76. Bf1 {[%clk 0:00:03.1]} 76... Kd4 {[%clk 0:00:12.3]} 77.
Kb7 {[%clk 0:00:03]} 77... Ke3 {[%clk 0:00:13.2]} 78. Kc6 {[%clk 0:00:03.9]}
78... Kf2 {[%clk 0:00:14.1]} 79. Bh3 {[%clk 0:00:03.5]} 79... Kg3 {[%clk
0:00:14.2]} 80. Bf5 {[%clk 0:00:02.6]} 80... h3 {[%clk 0:00:15.1]} 81. Be4
{[%clk 0:00:02.2]} 81... Kf2 {[%clk 0:00:15.1]} 82. Kd5 {[%clk 0:00:02.4]} 82...
Kg1 {[%clk 0:00:14.9]} 83. Kc4 {[%clk 0:00:01.9]} 83... h2 {[%clk 0:00:15.5]}
84. Kd5 {[%clk 0:00:01.4]} 84... h1=Q {[%clk 0:00:16.4]} 85. Bxh1 {[%clk
0:00:01.9]} 85... Kxh1 {[%clk 0:00:17.3]} 86. Kc4 {[%clk 0:00:02.5]} 86... Kh2
{[%clk 0:00:18.1]} 87. Kb4 {[%clk 0:00:03.4]} 87... Kg3 {[%clk 0:00:19]} 88. Ka4
{[%clk 0:00:03.7]} 88... Kf4 {[%clk 0:00:19.9]} 0-1

[Event "*** SCC Grand Prix: Titled Tuesday Blitz"]
[Site "Chess.com"]
[Date "2020.10.06"]
[Round "7"]
[White "johnathan113"]
[Black "TrimitziosP7"]
[Result "1/2-1/2"]
[WhiteElo "2616"]
[BlackElo "2806"]
[TimeControl "180+1"]
[EndTime "11:21:33 PDT"]
[Termination "Game drawn by repetition"]

1. d4 {[%clk 0:03:00.9]} 1... Nf6 {[%clk 0:03:00]} 2. Nc3 {[%clk 0:03:00.7]}
2... d5 {[%clk 0:02:56.5]} 3. Bf4 {[%clk 0:03:01]} 3... Bf5 {[%clk 0:02:51.4]}
4. f3 {[%clk 0:03:00.7]} 4... h6 {[%clk 0:02:48.6]} 5. g4 {[%clk 0:03:00.2]}
5... Bh7 {[%clk 0:02:48.4]} 6. h4 {[%clk 0:03:00.5]} 6... e6 {[%clk 0:02:45.4]}
7. e3 {[%clk 0:03:00.1]} 7... Bd6 {[%clk 0:02:43.4]} 8. Bd3 {[%clk 0:03:00.2]}
8... Bxf4 {[%clk 0:02:40.2]} 9. exf4 {[%clk 0:03:01.1]} 9... Bxd3 {[%clk
0:02:33.7]} 10. Qxd3 {[%clk 0:03:02]} 10... Qd6 {[%clk 0:02:29.4]} 11. Qe3
{[%clk 0:02:54.6]} 11... Nbd7 {[%clk 0:02:26.1]} 12. O-O-O {[%clk 0:02:54]}
12... O-O-O {[%clk 0:02:26]} 13. Nh3 {[%clk 0:02:54]} 13... c6 {[%clk
0:02:18.6]} 14. Nf2 {[%clk 0:02:51.2]} 14... Rhe8 {[%clk 0:02:13.8]} 15. h5
{[%clk 0:02:45.5]} 15... Kb8 {[%clk 0:02:08.9]} 16. Kb1 {[%clk 0:02:34.2]} 16...
Rc8 {[%clk 0:02:05.9]} 17. Nd3 {[%clk 0:02:30]} 17... c5 {[%clk 0:02:02]} 18.
dxc5 {[%clk 0:02:30.3]} 18... Nxc5 {[%clk 0:02:02.5]} 19. Ne5 {[%clk 0:02:19.1]}
19... Re7 {[%clk 0:01:52.5]} 20. Ne2 {[%clk 0:02:08.7]} 20... Rec7 {[%clk
0:01:47]} 21. Nd4 {[%clk 0:02:07.1]} 21... a6 {[%clk 0:01:45.5]} 22. g5 {[%clk
0:02:05.1]} 22... Ne8 {[%clk 0:01:40.7]} 23. g6 {[%clk 0:01:56.5]} 23... f6
{[%clk 0:01:37.4]} 24. Nf7 {[%clk 0:01:52.8]} 24... Qb6 {[%clk 0:01:36.4]} 25.
Rhe1 {[%clk 0:01:45.3]} 25... Nd6 {[%clk 0:01:25.4]} 26. Nxd6 {[%clk 0:01:19.1]}
26... Qxd6 {[%clk 0:01:26.3]} 27. Nxe6 {[%clk 0:01:19.5]} 27... Nxe6 {[%clk
0:01:17.8]} 28. Qxe6 {[%clk 0:01:20.4]} 28... Qxf4 {[%clk 0:01:11.8]} 29. Qxd5
{[%clk 0:01:18]} 29... Rxc2 {[%clk 0:01:09.3]} 30. a3 {[%clk 0:01:07.4]} 30...
Ka8 {[%clk 0:01:01.5]} 31. Re7 {[%clk 0:01:02.2]} 31... R2c7 {[%clk 0:00:54.4]}
32. Rde1 {[%clk 0:00:50.5]} 32... Qh2 {[%clk 0:00:42]} 33. R1e6 {[%clk
0:00:41.8]} 33... Qc2+ {[%clk 0:00:38.9]} 34. Ka2 {[%clk 0:00:41.8]} 34... Ka7
{[%clk 0:00:38.7]} 35. Qd4+ {[%clk 0:00:37.5]} 35... Kb8 {[%clk 0:00:31.3]} 36.
Qf4 {[%clk 0:00:33.9]} 36... Qc5 {[%clk 0:00:26.8]} 37. Rxc7 {[%clk 0:00:25.2]}
37... Qxc7 {[%clk 0:00:22.9]} 38. Qxc7+ {[%clk 0:00:22.4]} 38... Rxc7 {[%clk
0:00:23.8]} 39. Re8+ {[%clk 0:00:20.3]} 39... Ka7 {[%clk 0:00:23.9]} 40. Rf8
{[%clk 0:00:20]} 40... Kb6 {[%clk 0:00:24.2]} 41. Rf7 {[%clk 0:00:16]} 41... Kc6
{[%clk 0:00:23.9]} 42. Kb3 {[%clk 0:00:11.8]} 42... Kd6 {[%clk 0:00:19.2]} 43.
Rf8 {[%clk 0:00:11]} 43... Ke6 {[%clk 0:00:16.5]} 44. Kb4 {[%clk 0:00:10.3]}
44... b6 {[%clk 0:00:11.9]} 45. Rb8 {[%clk 0:00:05.3]} 45... a5+ {[%clk
0:00:10.6]} 46. Kb5 {[%clk 0:00:04.6]} 46... Rc5+ {[%clk 0:00:10.5]} 47. Kxb6
{[%clk 0:00:04.6]} 47... Rxh5 {[%clk 0:00:11.4]} 48. Rb7 {[%clk 0:00:03.8]}
48... Rh3 {[%clk 0:00:09.9]} 49. Rxg7 {[%clk 0:00:04.7]} 49... Rxf3 {[%clk
0:00:09.9]} 50. Kxa5 {[%clk 0:00:05.6]} 50... Kf5 {[%clk 0:00:07.8]} 51. b4
{[%clk 0:00:06.5]} 51... Rxa3+ {[%clk 0:00:07.3]} 52. Kb6 {[%clk 0:00:07.2]}
52... h5 {[%clk 0:00:07.3]} 53. b5 {[%clk 0:00:07.6]} 53... Rb3 {[%clk 0:00:07]}
54. Rg8 {[%clk 0:00:07.5]} 54... h4 {[%clk 0:00:06.8]} 55. Kc7 {[%clk
0:00:07.8]} 55... Rxb5 {[%clk 0:00:05.6]} 56. g7 {[%clk 0:00:07.4]} 56... Kg6
{[%clk 0:00:05.3]} 57. Kc6 {[%clk 0:00:07.3]} 57... Rb4 {[%clk 0:00:04.1]} 58.
Kc5 {[%clk 0:00:07.1]} 58... Rg4 {[%clk 0:00:03.4]} 59. Kd5 {[%clk 0:00:04.4]}
59... Kf7 {[%clk 0:00:03.3]} 60. Ra8 {[%clk 0:00:04.4]} 60... Kxg7 {[%clk
0:00:03.4]} 61. Ke6 {[%clk 0:00:05.3]} 61... Re4+ {[%clk 0:00:02.2]} 62. Kf5
{[%clk 0:00:05.7]} 62... Re5+ {[%clk 0:00:02.4]} 63. Kg4 {[%clk 0:00:06.4]}
63... Re4+ {[%clk 0:00:02.9]} 64. Kh5 {[%clk 0:00:06.3]} 64... Rb4 {[%clk
0:00:02.1]} 65. Ra7+ {[%clk 0:00:06.3]} 65... Kf8 {[%clk 0:00:02.4]} 66. Kg6
{[%clk 0:00:07.2]} 66... h3 {[%clk 0:00:02.3]} 67. Kxf6 {[%clk 0:00:08.1]} 67...
Rb6+ {[%clk 0:00:02.1]} 68. Kf5 {[%clk 0:00:07.2]} 68... h2 {[%clk 0:00:02.4]}
69. Rh7 {[%clk 0:00:06.9]} 69... Rb2 {[%clk 0:00:02.9]} 70. Kf6 {[%clk
0:00:06.6]} 70... Kg8 {[%clk 0:00:02.8]} 71. Rh3 {[%clk 0:00:06.3]} 71... Rg2
{[%clk 0:00:01.8]} 72. Kf5 {[%clk 0:00:06.4]} 72... Kg7 {[%clk 0:00:01.8]} 73.
Kf4 {[%clk 0:00:07]} 73... Kg6 {[%clk 0:00:02.3]} 74. Kf3 {[%clk 0:00:07.7]}
74... Ra2 {[%clk 0:00:02.9]} 75. Rh4 {[%clk 0:00:08.2]} 75... Kg5 {[%clk
0:00:01.9]} 76. Rh8 {[%clk 0:00:08.5]} 76... Ra3+ {[%clk 0:00:02.4]} 77. Kg2
{[%clk 0:00:09]} 77... Ra2+ {[%clk 0:00:02.9]} 78. Kh1 {[%clk 0:00:09.6]} 78...
Kg4 {[%clk 0:00:03.5]} 79. Rg8+ {[%clk 0:00:09.1]} 79... Kh3 {[%clk 0:00:03.8]}
80. Rh8+ {[%clk 0:00:09.6]} 80... Kg3 {[%clk 0:00:04]} 81. Rg8+ {[%clk
0:00:10.1]} 81... Kh3 {[%clk 0:00:04.3]} 82. Rh8+ {[%clk 0:00:10.4]} 82... Kg3
{[%clk 0:00:04.7]} 83. Rg8+ {[%clk 0:00:10.9]} 83... Kh3 {[%clk 0:00:05.1]}
1/2-1/2